[Event "*** Titled Tuesday Blitz"]
[Site "Chess.com"]
[Date "2020.10.20"]
[Round "11"]
[White "Alexander_Moskalenko"]
[Black "mirceaparligras"]
[Result "0-1"]
[WhiteElo "2865"]
[BlackElo "2670"]
[TimeControl "180+1"]
[EndTime "12:09:51 PDT"]
[Termination "mirceaparligras won by checkmate"]

1. d4 {[%clk 0:03:00.9]} 1... Nf6 {[%clk 0:02:59.6]} 2. Bg5 {[%clk 0:03:01.2]}
2... e6 {[%clk 0:02:58.2]} 3. c4 {[%clk 0:02:59.3]} 3... h6 {[%clk 0:02:51]} 4.
Bh4 {[%clk 0:02:57.1]} 4... Bb4+ {[%clk 0:02:48.6]} 5. Nc3 {[%clk 0:02:56.4]}
5... c5 {[%clk 0:02:43.3]} 6. Nf3 {[%clk 0:02:54.7]} 6... Qa5 {[%clk 0:02:35.8]}
7. Bxf6 {[%clk 0:02:41.4]} 7... Bxc3+ {[%clk 0:02:35.5]} 8. bxc3 {[%clk
0:02:40.9]} 8... Qxc3+ {[%clk 0:02:36.4]} 9. Nd2 {[%clk 0:02:41.3]} 9... gxf6
{[%clk 0:02:36.1]} 10. e3 {[%clk 0:02:41.7]} 10... cxd4 {[%clk 0:02:33]} 11. Rc1
{[%clk 0:02:41.1]} 11... Qb2 {[%clk 0:02:31.4]} 12. Rc2 {[%clk 0:02:39]} 12...
Qb6 {[%clk 0:02:23.1]} 13. c5 {[%clk 0:02:38.6]} 13... Qa5 {[%clk 0:02:18.8]}
14. exd4 {[%clk 0:02:38.2]} 14... Nc6 {[%clk 0:02:18.7]} 15. d5 {[%clk
0:02:38.6]} 15... Nb4 {[%clk 0:02:11.2]} 16. Bc4 {[%clk 0:02:38.3]} 16... Nxc2+
{[%clk 0:02:05.6]} 17. Qxc2 {[%clk 0:02:39.2]} 17... Qxc5 {[%clk 0:02:02.7]} 18.
Qb2 {[%clk 0:02:39.6]} 18... e5 {[%clk 0:01:53.8]} 19. O-O {[%clk 0:02:38.5]}
19... Qb6 {[%clk 0:01:45]} 20. Qa3 {[%clk 0:02:34.2]} 20... d6 {[%clk
0:01:36.1]} 21. Rb1 {[%clk 0:02:25.4]} 21... Qc5 {[%clk 0:01:26.7]} 22. Qf3
{[%clk 0:02:24.7]} 22... f5 {[%clk 0:01:23.1]} 23. Bd3 {[%clk 0:02:14.8]} 23...
Qd4 {[%clk 0:01:12.1]} 24. Rd1 {[%clk 0:01:48]} 24... Qf4 {[%clk 0:01:04.6]} 25.
Qe2 {[%clk 0:01:46]} 25... Bd7 {[%clk 0:01:01.6]} 26. Nc4 {[%clk 0:01:45.5]}
26... O-O {[%clk 0:00:47.5]} 27. g3 {[%clk 0:01:41.9]} 27... Qg4 {[%clk
0:00:47]} 28. Qd2 {[%clk 0:01:38.2]} 28... Qg5 {[%clk 0:00:46]} 29. Qb2 {[%clk
0:01:35.9]} 29... e4 {[%clk 0:00:45.1]} 30. Bf1 {[%clk 0:01:31.8]} 30... b6
{[%clk 0:00:40.9]} 31. Nxd6 {[%clk 0:01:31.6]} 31... Rad8 {[%clk 0:00:39]} 32.
Qa3 {[%clk 0:01:27.5]} 32... Qe7 {[%clk 0:00:35]} 33. Ba6 {[%clk 0:01:19.8]}
33... Bc8 {[%clk 0:00:26.5]} 34. Bxc8 {[%clk 0:01:16.3]} 34... Rxc8 {[%clk
0:00:26.1]} 35. Nb5 {[%clk 0:00:49.8]} 35... Qxa3 {[%clk 0:00:25.5]} 36. Nxa3
{[%clk 0:00:50.7]} 36... Rc5 {[%clk 0:00:25.8]} 37. d6 {[%clk 0:00:50.2]} 37...
Rd8 {[%clk 0:00:25.6]} 38. Kg2 {[%clk 0:00:50.1]} 38... Kg7 {[%clk 0:00:23.8]}
39. h3 {[%clk 0:00:48.4]} 39... h5 {[%clk 0:00:23]} 40. Rd4 {[%clk 0:00:48.4]}
40... Kf6 {[%clk 0:00:22.1]} 41. Nc4 {[%clk 0:00:48.8]} 41... b5 {[%clk
0:00:20.2]} 42. Na5 {[%clk 0:00:46.3]} 42... Rd7 {[%clk 0:00:20.4]} 43. g4
{[%clk 0:00:42.3]} 43... hxg4 {[%clk 0:00:19.8]} 44. hxg4 {[%clk 0:00:43.2]}
44... Ke5 {[%clk 0:00:20.2]} 45. Nb3 {[%clk 0:00:41.2]} 45... Rc4 {[%clk
0:00:17.6]} 46. Rd1 {[%clk 0:00:41.3]} 46... f4 {[%clk 0:00:16.9]} 47. Na5
{[%clk 0:00:39.6]} 47... Rd4 {[%clk 0:00:14.9]} 48. Rh1 {[%clk 0:00:39.5]} 48...
R4xd6 {[%clk 0:00:14.5]} 49. Rh5+ {[%clk 0:00:39.4]} 49... Kd4 {[%clk
0:00:14.8]} 50. Rxb5 {[%clk 0:00:39.3]} 50... Rg6 {[%clk 0:00:13.4]} 51. Nb3+
{[%clk 0:00:36.8]} 51... Kc4 {[%clk 0:00:13.1]} 52. Rc5+ {[%clk 0:00:36.2]}
52... Kb4 {[%clk 0:00:13.4]} 53. g5 {[%clk 0:00:37.1]} 53... Rd3 {[%clk
0:00:12.1]} 54. Rf5 {[%clk 0:00:36.5]} 54... Ka3 {[%clk 0:00:11.1]} 55. Nc5
{[%clk 0:00:34.4]} 55... f3+ {[%clk 0:00:10.9]} 56. Kg3 {[%clk 0:00:34.2]} 56...
Rd4 {[%clk 0:00:11.4]} 57. Kf4 {[%clk 0:00:31.5]} 57... a5 {[%clk 0:00:11.1]}
58. Ke3 {[%clk 0:00:31.7]} 58... Rb4 {[%clk 0:00:11.4]} 59. Nd7 {[%clk
0:00:17.8]} 59... a4 {[%clk 0:00:11.2]} 60. Ne5 {[%clk 0:00:17.4]} 60... Re6
{[%clk 0:00:10.9]} 61. Nxf7 {[%clk 0:00:17.4]} 61... Kxa2 {[%clk 0:00:09.9]} 62.
Ra5 {[%clk 0:00:17.4]} 62... a3 {[%clk 0:00:09.6]} 63. Ne5 {[%clk 0:00:17]}
63... Kb2 {[%clk 0:00:07.8]} 64. Nc6 {[%clk 0:00:17.3]} 64... Rb3+ {[%clk
0:00:07.6]} 65. Kf4 {[%clk 0:00:16.9]} 65... Rxc6 {[%clk 0:00:08]} 66. Kxe4
{[%clk 0:00:17.3]} 66... a2 {[%clk 0:00:08.3]} 67. Kf5 {[%clk 0:00:17.8]} 67...
a1=Q {[%clk 0:00:08.5]} 68. Rxa1 {[%clk 0:00:18.7]} 68... Kxa1 {[%clk
0:00:09.3]} 69. g6 {[%clk 0:00:19.6]} 69... Rb5+ {[%clk 0:00:09.6]} 70. Kf4
{[%clk 0:00:19.4]} 70... Rxg6 {[%clk 0:00:10.1]} 71. Kxf3 {[%clk 0:00:20.3]}
71... Rf6+ {[%clk 0:00:10.5]} 72. Ke4 {[%clk 0:00:21.2]} 72... Rbf5 {[%clk
0:00:10.8]} 73. f4 {[%clk 0:00:22.1]} 73... Rxf4+ {[%clk 0:00:11.2]} 74. Ke3
{[%clk 0:00:23]} 74... R4f5 {[%clk 0:00:11.4]} 75. Ke2 {[%clk 0:00:23.9]} 75...
Ra5 {[%clk 0:00:12]} 76. Ke1 {[%clk 0:00:24.8]} 76... Rb6 {[%clk 0:00:12.6]} 77.
Kd1 {[%clk 0:00:25.7]} 77... Rb2 {[%clk 0:00:12.7]} 78. Kc1 {[%clk 0:00:26.6]}
78... Rh5 {[%clk 0:00:13]} 79. Kd1 {[%clk 0:00:26.3]} 79... Rh1# {[%clk
0:00:13.9]} 0-1

[Event "*** Titled Tuesday Blitz"]
[Site "Chess.com"]
[Date "2020.10.20"]
[Round "11"]
[White "margarita_2703"]
[Black "GMTalks_Youtube"]
[Result "0-1"]
[WhiteElo "2409"]
[BlackElo "2601"]
[TimeControl "180+1"]
[EndTime "12:09:52 PDT"]
[Termination "GMTalks_Youtube won by resignation"]

1. Nf3 {[%clk 0:03:00.9]} 1... d5 {[%clk 0:02:59.1]} 2. d4 {[%clk 0:03:00.2]}
2... Nf6 {[%clk 0:02:55.3]} 3. Bf4 {[%clk 0:02:58.4]} 3... c5 {[%clk 0:02:50.9]}
4. e3 {[%clk 0:02:58.1]} 4... Nc6 {[%clk 0:02:49.9]} 5. c3 {[%clk 0:02:58.1]}
5... Qb6 {[%clk 0:02:48.1]} 6. Qc1 {[%clk 0:02:57.4]} 6... Bf5 {[%clk 0:02:46]}
7. Nbd2 {[%clk 0:02:56.9]} 7... Rc8 {[%clk 0:02:45.2]} 8. Be2 {[%clk 0:02:45.6]}
8... e6 {[%clk 0:02:24.4]} 9. O-O {[%clk 0:02:44.3]} 9... Be7 {[%clk 0:02:21.8]}
10. a4 {[%clk 0:02:22.4]} 10... O-O {[%clk 0:02:16.8]} 11. dxc5 {[%clk
0:02:21.9]} 11... Bxc5 {[%clk 0:02:14.5]} 12. b4 {[%clk 0:02:21.7]} 12... Be7
{[%clk 0:02:07.6]} 13. a5 {[%clk 0:02:21]} 13... Qd8 {[%clk 0:02:07.2]} 14. Qb2
{[%clk 0:02:15.7]} 14... Nh5 {[%clk 0:02:05.4]} 15. Be5 {[%clk 0:02:05.4]} 15...
Nxe5 {[%clk 0:01:49.4]} 16. Nxe5 {[%clk 0:02:04.5]} 16... Qc7 {[%clk 0:01:44.5]}
17. f4 {[%clk 0:01:57.4]} 17... Nf6 {[%clk 0:01:40.9]} 18. Rac1 {[%clk
0:01:54.4]} 18... Qd6 {[%clk 0:01:13.6]} 19. Nb3 {[%clk 0:01:48.3]} 19... a6
{[%clk 0:01:02.4]} 20. Nc5 {[%clk 0:01:46.4]} 20... Qc7 {[%clk 0:01:00.4]} 21.
Nb3 {[%clk 0:01:38]} 21... Nd7 {[%clk 0:00:55.3]} 22. Nxd7 {[%clk 0:01:35.2]}
22... Qxd7 {[%clk 0:00:54.8]} 23. Nd4 {[%clk 0:01:35.1]} 23... Bg6 {[%clk
0:00:54.1]} 24. g4 {[%clk 0:01:31.9]} 24... Be4 {[%clk 0:00:51.7]} 25. b5 {[%clk
0:01:20.4]} 25... axb5 {[%clk 0:00:49.2]} 26. Bxb5 {[%clk 0:01:20.1]} 26... Qc7
{[%clk 0:00:48.9]} 27. a6 {[%clk 0:01:01.4]} 27... bxa6 {[%clk 0:00:48.3]} 28.
Bxa6 {[%clk 0:01:01.1]} 28... Rb8 {[%clk 0:00:48.9]} 29. Qd2 {[%clk 0:00:59.8]}
29... Bc5 {[%clk 0:00:47.7]} 30. Bd3 {[%clk 0:00:58.5]} 30... Bxd3 {[%clk
0:00:45.6]} 31. Qxd3 {[%clk 0:00:58.4]} 31... Rb2 {[%clk 0:00:43.5]} 32. Rc2
{[%clk 0:00:54.5]} 32... Rxc2 {[%clk 0:00:41]} 33. Qxc2 {[%clk 0:00:51.4]} 33...
Rc8 {[%clk 0:00:37.1]} 34. Rf3 {[%clk 0:00:39.8]} 34... Bxd4 {[%clk 0:00:33.1]}
35. exd4 {[%clk 0:00:39.2]} 35... Qc4 {[%clk 0:00:32.4]} 36. Qd3 {[%clk
0:00:34.8]} 36... Qa2 {[%clk 0:00:30.7]} 37. Rf2 {[%clk 0:00:32.5]} 37... Qa1+
{[%clk 0:00:29.9]} 38. Rf1 {[%clk 0:00:30.1]} 38... Qxc3 {[%clk 0:00:30]} 39.
Qxc3 {[%clk 0:00:30.1]} 39... Rxc3 {[%clk 0:00:29.8]} 40. Rb1 {[%clk 0:00:30.1]}
40... g6 {[%clk 0:00:27.9]} 41. Kf2 {[%clk 0:00:24.6]} 41... Rc2+ {[%clk
0:00:24.5]} 42. Kg3 {[%clk 0:00:22.9]} 42... Rc4 {[%clk 0:00:22.3]} 43. Rd1
{[%clk 0:00:21.5]} 43... h6 {[%clk 0:00:21.7]} 44. Kf3 {[%clk 0:00:20.6]} 44...
Rc3+ {[%clk 0:00:21.6]} 45. Kg2 {[%clk 0:00:20.5]} 45... g5 {[%clk 0:00:21.1]}
46. f5 {[%clk 0:00:18.7]} 46... exf5 {[%clk 0:00:20.6]} 47. gxf5 {[%clk
0:00:19.1]} 47... Kg7 {[%clk 0:00:21]} 48. Re1 {[%clk 0:00:18.9]} 48... Rd3
{[%clk 0:00:20.8]} 49. Re5 {[%clk 0:00:18.1]} 49... Rxd4 {[%clk 0:00:20.6]} 50.
Kg3 {[%clk 0:00:17.5]} 50... Kf6 {[%clk 0:00:21.2]} 51. Re8 {[%clk 0:00:16.7]}
51... h5 {[%clk 0:00:21.3]} 52. h3 {[%clk 0:00:15.9]} 52... Rd3+ {[%clk
0:00:21.7]} 53. Kg2 {[%clk 0:00:15.8]} 53... Kxf5 {[%clk 0:00:22.3]} 54. Rf8
{[%clk 0:00:15.2]} 54... f6 {[%clk 0:00:22.6]} 55. Rh8 {[%clk 0:00:14.7]} 55...
h4 {[%clk 0:00:22.8]} 56. Rd8 {[%clk 0:00:14.6]} 56... d4 {[%clk 0:00:23.3]} 57.
Kh2 {[%clk 0:00:13.9]} 57... Kf4 {[%clk 0:00:22.5]} 58. Kg2 {[%clk 0:00:13.6]}
58... f5 {[%clk 0:00:22.7]} 59. Kh2 {[%clk 0:00:13.7]} 59... Rd2+ {[%clk
0:00:23.1]} 60. Kg1 {[%clk 0:00:13.6]} 60... Kg3 {[%clk 0:00:22.8]} 61. Kf1
{[%clk 0:00:13.7]} 61... f4 {[%clk 0:00:22.3]} 62. Rg8 {[%clk 0:00:13.8]} 62...
Kf3 {[%clk 0:00:22.2]} 63. Ke1 {[%clk 0:00:12.5]} 63... Re2+ {[%clk 0:00:22.2]}
64. Kd1 {[%clk 0:00:12.9]} 64... Rg2 {[%clk 0:00:22.4]} 65. Rd8 {[%clk
0:00:11.8]} 65... Ke3 {[%clk 0:00:22.7]} 66. Re8+ {[%clk 0:00:11.9]} 66... Kd3
{[%clk 0:00:22.9]} 67. Ke1 {[%clk 0:00:12.1]} 67... Rg3 {[%clk 0:00:22.7]} 68.
Rg8 {[%clk 0:00:11]} 68... Ke3 {[%clk 0:00:22.7]} 69. Re8+ {[%clk 0:00:10.6]}
69... Kf3 {[%clk 0:00:22.8]} 70. Rd8 {[%clk 0:00:10.3]} 70... Rxh3 {[%clk
0:00:23]} 71. Rxd4 {[%clk 0:00:10]} 71... Rg3 {[%clk 0:00:22.2]} 72. Rd3+ {[%clk
0:00:09.2]} 72... Kg4 {[%clk 0:00:22.6]} 73. Rd7 {[%clk 0:00:09]} 73... h3
{[%clk 0:00:22.6]} 74. Kf1 {[%clk 0:00:08.9]} 74... Rg2 {[%clk 0:00:22.5]} 0-1

[Event "*** Titled Tuesday Blitz"]
[Site "Chess.com"]
[Date "2020.10.20"]
[Round "11"]
[White "Ural_bogatyr"]
[Black "ehrenfeld"]
[Result "1/2-1/2"]
[WhiteElo "2361"]
[BlackElo "2466"]
[TimeControl "180+1"]
[EndTime "12:09:54 PDT"]
[Termination "Game drawn by repetition"]

1. e4 {[%clk 0:03:00.9]} 1... d6 {[%clk 0:02:59.4]} 2. d4 {[%clk 0:03:00.5]}
2... g6 {[%clk 0:02:59.2]} 3. Nc3 {[%clk 0:03:00.8]} 3... Bg7 {[%clk 0:02:59]}
4. h4 {[%clk 0:03:01.1]} 4... h5 {[%clk 0:02:57.3]} 5. Nh3 {[%clk 0:03:01.1]}
5... Bxh3 {[%clk 0:02:55.4]} 6. Rxh3 {[%clk 0:03:00.7]} 6... e6 {[%clk
0:02:54.6]} 7. Bg5 {[%clk 0:03:00]} 7... Ne7 {[%clk 0:02:53.9]} 8. Qd2 {[%clk
0:02:58.3]} 8... Nd7 {[%clk 0:02:53.3]} 9. O-O-O {[%clk 0:02:57.9]} 9... c6
{[%clk 0:02:52.9]} 10. f4 {[%clk 0:02:47.2]} 10... f6 {[%clk 0:02:50.1]} 11. f5
{[%clk 0:02:46.5]} 11... fxg5 {[%clk 0:02:44.4]} 12. fxe6 {[%clk 0:02:46.6]}
12... Nf6 {[%clk 0:02:40.4]} 13. hxg5 {[%clk 0:02:43.9]} 13... Ng4 {[%clk
0:02:38.8]} 14. Rf3 {[%clk 0:02:27.9]} 14... Rf8 {[%clk 0:02:06.9]} 15. Bc4
{[%clk 0:02:18.3]} 15... Qc7 {[%clk 0:02:06.3]} 16. Rf7 {[%clk 0:02:04.1]} 16...
Rxf7 {[%clk 0:02:05.8]} 17. exf7+ {[%clk 0:02:03.4]} 17... Kf8 {[%clk
0:02:03.9]} 18. Rf1 {[%clk 0:01:45.8]} 18... d5 {[%clk 0:01:55]} 19. exd5 {[%clk
0:01:39.7]} 19... cxd5 {[%clk 0:01:49.6]} 20. Bxd5 {[%clk 0:01:35.3]} 20... Rd8
{[%clk 0:01:47.2]} 21. Qd3 {[%clk 0:01:01.5]} 21... Nxd5 {[%clk 0:01:27.9]} 22.
Nxd5 {[%clk 0:00:55.6]} 22... Rxd5 {[%clk 0:01:27.3]} 23. Qxg6 {[%clk 0:00:56]}
23... Qe7 {[%clk 0:00:54.3]} 24. Qh7 {[%clk 0:00:48.8]} 24... Qxg5+ {[%clk
0:00:54]} 25. Kb1 {[%clk 0:00:47]} 25... Nh6 {[%clk 0:00:53.6]} 26. Qe4 {[%clk
0:00:37.9]} 26... Nxf7 {[%clk 0:00:50.6]} 27. Qe6 {[%clk 0:00:37.3]} 27... Kg8
{[%clk 0:00:34.3]} 28. Qxf7+ {[%clk 0:00:33.8]} 28... Kh7 {[%clk 0:00:33.5]} 29.
Rh1 {[%clk 0:00:30.8]} 29... Qf5 {[%clk 0:00:29.8]} 30. Qxf5+ {[%clk 0:00:24.6]}
30... Rxf5 {[%clk 0:00:29.1]} 31. g4 {[%clk 0:00:25.5]} 31... Rd5 {[%clk
0:00:27]} 32. c3 {[%clk 0:00:22.7]} 32... Kh6 {[%clk 0:00:25.3]} 33. Rxh5+
{[%clk 0:00:22.6]} 33... Rxh5 {[%clk 0:00:24.4]} 34. gxh5 {[%clk 0:00:23.5]}
34... Kxh5 {[%clk 0:00:24.8]} 35. Kc2 {[%clk 0:00:23.6]} 35... Kg5 {[%clk
0:00:25.3]} 36. Kd3 {[%clk 0:00:23.7]} 36... Kf5 {[%clk 0:00:25.8]} 37. a4
{[%clk 0:00:18.7]} 37... Ke6 {[%clk 0:00:25.3]} 38. a5 {[%clk 0:00:16.9]} 38...
Kd6 {[%clk 0:00:25.2]} 39. b4 {[%clk 0:00:14.9]} 39... Bf6 {[%clk 0:00:25]} 40.
c4 {[%clk 0:00:15]} 40... Bh4 {[%clk 0:00:23.1]} 41. Ke4 {[%clk 0:00:11.7]}
41... Be1 {[%clk 0:00:22.2]} 42. c5+ {[%clk 0:00:11.9]} 42... Kd7 {[%clk
0:00:21.1]} 43. a6 {[%clk 0:00:08.5]} 43... bxa6 {[%clk 0:00:20.2]} 44. d5
{[%clk 0:00:07.8]} 44... Bxb4 {[%clk 0:00:19.6]} 45. Kd4 {[%clk 0:00:07.9]}
45... Kc7 {[%clk 0:00:17.2]} 46. Kc4 {[%clk 0:00:08]} 46... Ba3 {[%clk
0:00:16.8]} 47. Kd4 {[%clk 0:00:07.6]} 47... Bc1 {[%clk 0:00:16.4]} 48. Kc4
{[%clk 0:00:07.5]} 48... Be3 {[%clk 0:00:15.6]} 49. Kb4 {[%clk 0:00:07.3]} 49...
Kd7 {[%clk 0:00:14.2]} 50. Kc4 {[%clk 0:00:07.2]} 50... Ke7 {[%clk 0:00:14]} 51.
Kb4 {[%clk 0:00:07.3]} 51... Kf6 {[%clk 0:00:13]} 52. c6 {[%clk 0:00:05.9]}
52... Bf4 {[%clk 0:00:06.9]} 53. Ka5 {[%clk 0:00:05.7]} 53... Ke7 {[%clk
0:00:06.8]} 54. Kxa6 {[%clk 0:00:05.3]} 54... Kd8 {[%clk 0:00:07.3]} 55. Kxa7
{[%clk 0:00:02.6]} 55... Bd6 {[%clk 0:00:07.1]} 56. Kb7 {[%clk 0:00:02.4]} 56...
Be5 {[%clk 0:00:07.2]} 57. Kb6 {[%clk 0:00:02.5]} 57... Bd6 {[%clk 0:00:07.4]}
58. Kb7 {[%clk 0:00:02.7]} 58... Be5 {[%clk 0:00:07.2]} 59. Ka6 {[%clk
0:00:02.7]} 59... Kc7 {[%clk 0:00:06.8]} 60. Kb5 {[%clk 0:00:02.6]} 60... Bd6
{[%clk 0:00:07.3]} 61. Kc4 {[%clk 0:00:02.9]} 61... Be5 {[%clk 0:00:07.9]} 62.
Kc5 {[%clk 0:00:03.8]} 62... Bd6+ {[%clk 0:00:08.1]} 63. Kb5 {[%clk 0:00:04.5]}
63... Be5 {[%clk 0:00:08.3]} 64. Kc4 {[%clk 0:00:05.4]} 64... Bd6 {[%clk
0:00:08.5]} 65. Kd4 {[%clk 0:00:06.3]} 65... Bb4 {[%clk 0:00:08.2]} 66. Ke4
{[%clk 0:00:07.2]} 66... Bd6 {[%clk 0:00:08.2]} 67. Kf5 {[%clk 0:00:07.1]} 67...
Bc5 {[%clk 0:00:08.3]} 68. Ke6 {[%clk 0:00:08]} 68... Bd6 {[%clk 0:00:08.7]} 69.
Kf7 {[%clk 0:00:07.7]} 69... Bc5 {[%clk 0:00:07.9]} 70. Ke6 {[%clk 0:00:08.6]}
70... Bd6 {[%clk 0:00:08.4]} 71. Kf7 {[%clk 0:00:09.5]} 71... Bc5 {[%clk
0:00:09]} 72. Ke6 {[%clk 0:00:10.4]} 1/2-1/2

[Event "*** Titled Tuesday Blitz"]
[Site "Chess.com"]
[Date "2020.10.20"]
[Round "11"]
[White "romulocardoso"]
[Black "CM_rui"]
[Result "0-1"]
[WhiteElo "2119"]
[BlackElo "2351"]
[TimeControl "180+1"]
[EndTime "12:09:55 PDT"]
[Termination "CM_rui won by resignation"]

1. e4 {[%clk 0:03:00.9]} 1... e5 {[%clk 0:02:59.8]} 2. Nf3 {[%clk 0:03:01]} 2...
Nc6 {[%clk 0:03:00.1]} 3. d4 {[%clk 0:03:00.4]} 3... exd4 {[%clk 0:03:00.7]} 4.
Bc4 {[%clk 0:02:58.1]} 4... Nf6 {[%clk 0:02:59.2]} 5. e5 {[%clk 0:02:56.2]} 5...
d5 {[%clk 0:02:59.8]} 6. Bb5 {[%clk 0:02:55.9]} 6... Ne4 {[%clk 0:03:00.1]} 7.
Nxd4 {[%clk 0:02:55.3]} 7... Bd7 {[%clk 0:03:00.6]} 8. Bxc6 {[%clk 0:02:54.8]}
8... bxc6 {[%clk 0:03:01.5]} 9. O-O {[%clk 0:02:55.2]} 9... Bc5 {[%clk
0:03:01.9]} 10. f3 {[%clk 0:02:55.2]} 10... Ng5 {[%clk 0:03:00.2]} 11. Be3
{[%clk 0:02:55.1]} 11... O-O {[%clk 0:02:59]} 12. f4 {[%clk 0:02:54.4]} 12...
Ne6 {[%clk 0:02:59.1]} 13. f5 {[%clk 0:02:48.6]} 13... Nxd4 {[%clk 0:02:52.4]}
14. Bxd4 {[%clk 0:02:49.5]} 14... Bxd4+ {[%clk 0:02:50.8]} 15. Qxd4 {[%clk
0:02:50.4]} 15... Qg5 {[%clk 0:02:50.1]} 16. h4 {[%clk 0:02:26.9]} 16... Qh5
{[%clk 0:02:45.4]} 17. Qf4 {[%clk 0:02:14.7]} 17... Rab8 {[%clk 0:02:39]} 18. b3
{[%clk 0:02:10]} 18... a5 {[%clk 0:02:36.7]} 19. Nd2 {[%clk 0:02:09]} 19... Rb4
{[%clk 0:02:35.8]} 20. c4 {[%clk 0:02:07.7]} 20... Re8 {[%clk 0:02:16.1]} 21. a3
{[%clk 0:02:01]} 21... Rb6 {[%clk 0:02:15.3]} 22. e6 {[%clk 0:01:54.1]} 22...
Bc8 {[%clk 0:01:30.3]} 23. Qxc7 {[%clk 0:01:52.2]} 23... Rb7 {[%clk 0:01:25.4]}
24. Qxc6 {[%clk 0:01:50.8]} 24... fxe6 {[%clk 0:01:22.5]} 25. cxd5 {[%clk
0:01:48.3]} 25... exf5 {[%clk 0:01:17.6]} 26. Rae1 {[%clk 0:01:45.9]} 26... Rd8
{[%clk 0:01:10]} 27. d6 {[%clk 0:01:30.5]} 27... Rbd7 {[%clk 0:01:08.1]} 28.
Qd5+ {[%clk 0:01:24.3]} 28... Kh8 {[%clk 0:01:07.8]} 29. Rxf5 {[%clk 0:01:23.8]}
29... Qxh4 {[%clk 0:01:06.4]} 30. Ref1 {[%clk 0:01:19.8]} 30... h6 {[%clk
0:00:47.4]} 31. Rf8+ {[%clk 0:01:19.4]} 31... Kh7 {[%clk 0:00:47.9]} 32. Qf5+
{[%clk 0:01:18.6]} 32... g6 {[%clk 0:00:47.3]} 33. Rf7+ {[%clk 0:01:17.4]} 33...
Rxf7 {[%clk 0:00:44.2]} 34. Qxf7+ {[%clk 0:01:18.3]} 34... Kh8 {[%clk
0:00:44.3]} 35. Qxg6 {[%clk 0:01:17.7]} 35... Qd4+ {[%clk 0:00:39.4]} 36. Rf2
{[%clk 0:01:17.6]} 36... Qxd6 {[%clk 0:00:25.2]} 37. Qxd6 {[%clk 0:01:09.1]}
37... Rxd6 {[%clk 0:00:26.1]} 38. Nc4 {[%clk 0:01:09.1]} 38... Rd1+ {[%clk
0:00:24.5]} 39. Kh2 {[%clk 0:01:09.2]} 39... Be6 {[%clk 0:00:18.3]} 40. Nxa5
{[%clk 0:01:08.7]} 40... Ra1 {[%clk 0:00:17.8]} 41. a4 {[%clk 0:00:51.6]} 41...
Ra3 {[%clk 0:00:17]} 42. Rf3 {[%clk 0:00:51.3]} 42... Kg7 {[%clk 0:00:16.7]} 43.
Kg3 {[%clk 0:00:50]} 43... Bd5 {[%clk 0:00:15.8]} 44. Rd3 {[%clk 0:00:48.9]}
44... Be4 {[%clk 0:00:15.6]} 45. Re3 {[%clk 0:00:45.6]} 45... Bd5 {[%clk
0:00:15.9]} 46. Kf4 {[%clk 0:00:45.6]} 46... Ra2 {[%clk 0:00:14.4]} 47. Ke5
{[%clk 0:00:40.4]} 47... Bxg2 {[%clk 0:00:13.6]} 48. Ke6 {[%clk 0:00:28.3]}
48... h5 {[%clk 0:00:12.3]} 49. Rg3+ {[%clk 0:00:27.8]} 49... Kh6 {[%clk
0:00:12.5]} 50. Nc4 {[%clk 0:00:25.5]} 50... h4 {[%clk 0:00:11.7]} 51. Rg8
{[%clk 0:00:24.6]} 51... h3 {[%clk 0:00:11.5]} 52. Ne3 {[%clk 0:00:24.2]} 52...
Be4 {[%clk 0:00:08.5]} 53. Rh8+ {[%clk 0:00:20.2]} 53... Bh7 {[%clk 0:00:08.3]}
54. Kf6 {[%clk 0:00:20.2]} 54... Rf2+ {[%clk 0:00:05.8]} 55. Ke6 {[%clk
0:00:20.1]} 55... Re2 {[%clk 0:00:06]} 56. Kd5 {[%clk 0:00:07.9]} 56... Rxe3
{[%clk 0:00:06.4]} 57. Rf8 {[%clk 0:00:08.8]} 57... Rxb3 {[%clk 0:00:06]} 58.
Rf2 {[%clk 0:00:07]} 58... Ra3 {[%clk 0:00:05.2]} 59. Rh2 {[%clk 0:00:07.1]}
59... Bf5 {[%clk 0:00:04.4]} 60. Ke5 {[%clk 0:00:07.4]} 60... Kg5 {[%clk
0:00:04.4]} 61. Rf2 {[%clk 0:00:06.2]} 61... Bg4 {[%clk 0:00:04]} 62. Rf8 {[%clk
0:00:03.7]} 62... Rxa4 {[%clk 0:00:04.1]} 63. Rg8+ {[%clk 0:00:03.8]} 63... Kh4
{[%clk 0:00:04.7]} 64. Rh8+ {[%clk 0:00:04.1]} 64... Kg3 {[%clk 0:00:05.2]} 65.
Kd5 {[%clk 0:00:04.3]} 65... h2 {[%clk 0:00:05.5]} 66. Rxh2 {[%clk 0:00:02.1]}
66... Kxh2 {[%clk 0:00:05.6]} 67. Ke5 {[%clk 0:00:03]} 67... Kg3 {[%clk
0:00:06.5]} 0-1